bitfinex/quotes_ETHUSD_20240608
["timestamp","ask_amount","ask_price","bid_price","bid_amount"]
[1717832262785,0.01,3705.7,3705.6,3.4741506]
[1717832263151,0.16360057,3705.7,3705.6,3.4741506]
[1717832263677,0.01,3705.7,3705.6,3.4741506]
[1717832264241,0.16360057,3705.7,3705.6,3.4741506]
[1717832264441,0.01,3705.7,3705.6,3.4741506]
[1717832264638,0.1635484,3705.7,3705.6,3.4741506]
[1717832264833,0.01,3705.7,3705.6,3.4741506]
[1717832265041,0.1635484,3705.7,3705.6,3.4741506]
[1717832265234,0.01,3705.7,3705.6,0.9884506]
[1717832265440,0.1635484,3705.7,3705.6,0.9884506]
[1717832265742,0.01,3705.7,3705.6,0.9884506]
[1717832266269,0.1635484,3705.7,3705.6,0.9884506]
[1717832266455,0.01,3705.7,3705.6,0.9884506]
[1717832266663,0.1635484,3705.7,3705.6,0.9884506]
[1717832266974,0.01,3705.7,3705.6,0.9884506]
[1717832267491,0.1635484,3705.7,3705.6,0.9884506]
[1717832267655,0.01,3705.7,3705.6,0.9884506]
[1717832267848,0.1635484,3705.7,3705.6,0.9884506]
[1717832268056,0.01,3705.7,3705.6,0.9884506]
[1717832268259,0.1635484,3705.7,3705.6,0.9884506]
[1717832268472,0.01,3705.7,3705.6,0.9884506]
[1717832268655,0.1635484,3705.7,3705.6,0.9884506]
[1717832268876,0.01,3705.7,3705.6,0.9884506]
[1717832269047,0.16354187,3705.7,3705.6,0.9884506]
[1717832269247,0.01,3705.7,3705.6,0.9884506]
[1717832269444,0.16354187,3705.7,3705.6,0.9884506]
[1717832269648,0.01,3705.7,3705.6,0.9884506]
[1717832269859,0.16354187,3705.7,3705.6,0.9884506]
[1717832270062,0.01,3705.7,3705.6,0.9884506]
[1717832270263,0.16354187,3705.7,3705.6,4.87026962]
[1717832270461,0.01,3705.7,3705.6,4.81630526]
[1717832271000,0.005,3707.3,3706.8,2.435]
[1717832271147,2.6978,3706.8,3706.3,0.008]
[1717832271340,0.07244509,3707.3,3706.8,0.4384506]
[1717832271341,2.70241,3707.3,3706.8,0.4384506]
[1717832271576,0.2877446,3706.9,3706.8,2.38130526]
[1717832271785,0.2877446,3706.9,3706.8,0.9884506]
[1717832272261,0.2877446,3706.9,3706.8,1.7104506]
[1717832272661,0.2377446,3706.9,3706.8,1.7104506]
[1717832272862,0.2377446,3706.9,3706.8,0.9884506]
[1717832273175,0.2377446,3706.9,3706.8,0.55]
[1717832273503,0.2377446,3706.9,3706.8,1.1604506]
[1717832273651,0.2377446,3706.9,3706.8,1.7104506]
[1717832273851,0.2377446,3706.9,3706.8,0.9884506]
[1717832274080,0.2377446,3706.9,3706.8,1.7104506]
[1717832279788,0.2377446,3706.9,3706.8,0.9884506]
[1717832280103,0.2377446,3706.9,3706.8,1.7104506]
[1717832281357,0.2377446,3706.9,3706.8,3.9846506]
[1717832285915,0.2377446,3706.9,3706.8,3.2626506]
[1717832286066,0.2377446,3706.9,3706.8,3.9846506]
[1717832289277,0.2377446,3706.9,3706.8,5.37750526]
[1717832290217,0.0889543,3706.9,3706.8,5.37750526]
[1717832299187,0.0889543,3706.9,3706.8,4.65550526]
[1717832299390,0.0889543,3706.9,3706.8,5.37750526]
[1717832303290,0.0889543,3706.9,3706.8,4.65550526]
[1717832303496,0.0889543,3706.9,3706.8,5.37750526]
[1717832304937,0.0889543,3706.9,3706.8,2.38130526]
[1717832305237,0.0889543,3706.9,3706.8,0.4384506]
[1717832305447,0.23516565,3706.9,3706.8,1.1604506]
[1717832305592,0.0889543,3706.9,3706.8,1.1604506]
[1717832305794,0.23516565,3706.9,3706.8,1.1604506]
[1717832306218,0.23516565,3706.9,3706.8,2.55330526]
[1717832306436,0.23516565,3706.9,3706.8,1.1604506]
[1717832306738,0.23516565,3706.9,3706.8,1.7104506]
[1717832310239,0.23516565,3706.9,3706.8,0.9884506]
[1717832310530,0.23516565,3706.9,3706.8,1.7104506]
[1717832310920,0.23516565,3706.9,3706.8,0.9884506]
[1717832311124,0.23516565,3706.9,3706.8,1.7104506]
[1717832312746,0.23516565,3706.9,3706.8,0.9884506]
[1717832312945,0.23516565,3706.9,3706.8,1.7104506]
[1717832319685,0.23516565,3706.9,3706.8,0.9884506]
[1717832320259,0.67656565,3706.9,3706.8,0.9884506]
[1717832320599,0.67656565,3706.9,3706.8,1.7104506]
[1717832322145,0.67656565,3706.9,3706.8,0.9884506]
[1717832322884,0.67656565,3706.9,3706.8,0.55]
[1717832323039,2.69774,3706.8,3706.7,0.558]
[1717832323246,2.84331167,3706.8,3706.7,0.55]
[1717832323788,2.84331167,3706.8,3706.6,0.4464506]
[1717832324095,2.84331167,3706.8,3706.7,0.722]
[1717832325594,2.84331167,3706.8,3706.6,0.4464506]
[1717832325893,2.84331167,3706.8,3706.7,0.55]
[1717832326384,3.57793827,3706.8,3706.7,0.55]
[1717832326752,3.57793827,3706.8,3706.6,0.4464506]
[1717832333915,3.13653827,3706.8,3706.6,0.4464506]
[1717832338425,3.13653827,3706.8,3706.7,0.55]
[1717832338593,2.84331167,3706.8,3706.7,0.55]
[1717832344108,2.84331167,3706.8,3706.7,3.7069]
[1717832348147,2.84331167,3706.8,3706.7,2.9849]
[1717832348295,2.84331167,3706.8,3706.7,0.55]
[1717832353363,2.84331167,3706.8,3706.6,0.008]
[1717832353507,2.69792,3706.6,3706.4,0.008]
[1717832355643,2.69792,3706.6,3706.5,0.4384506]
[1717832355839,2.69792,3706.6,3706.5,0.9964506]
[1717832356038,2.69792,3706.6,3706.5,0.558]
[1717832356258,2.69792,3706.6,3706.5,0.008]
[1717832356421,3.13932,3706.6,3706.4,0.558]
[1717832356621,3.13932,3706.6,3706.4,0.008]
[1717832356863,3.47868586,3706.6,3706.4,0.008]
[1717832357365,0.1449514,3706.5,3706.4,0.008]
[1717832357563,0.1449514,3706.5,3706.2,0.55]
[1717832357564,2.69803,3706.4,3706.3,0.008]
[1717832358056,2.84277897,3706.4,3706.2,0.008]
[1717832358259,3.2051537,3706.4,3706.2,0.008]
[1717832359213,6.6251837,3706.4,3706.2,0.008]
[1717832359443,3.0,3706.3,3706.2,0.008]
[1717832359629,3.583514,3706.3,3706.2,0.008]
[1717832359833,4.55688382,3706.3,3706.2,0.008]
[1717832361563,4.5568409,3706.3,3706.2,0.008]
[1717832361921,2.69026,3706.1,3705.6,0.4384506]
[1717832362116,2.69841,3705.9,3705.7,0.55]
[1717832362333,0.14403701,3705.8,3705.7,0.55]
[1717832362862,2.69856,3705.7,3705.5,0.55]
[1717832363562,0.14403701,3705.6,3705.5,0.55]
[1717832364039,2.6987,3705.5,3705.3,0.55]
[1717832364357,0.14401091,3705.4,3705.3,0.55]
[1717832368863,3.14023,3705.3,3704.8,0.4384506]
[1717832369047,2.69883,3705.3,3705.1,0.4384506]
[1717832369268,0.14391945,3705.2,3705.1,0.4384506]
[1717832369764,2.69883,3705.3,3705.1,0.4384506]
[1717832369966,0.14391945,3705.2,3705.1,0.4384506]
[1717832370169,2.69883,3705.3,3705.1,0.9884506]
[1717832370470,2.69883,3705.3,3705.2,0.55]
[1717832370668,0.4414,3705.2,3704.6,7.8684506]
[1717832370960,1.1634,3705.2,3704.6,7.8684506]
[1717832371524,0.4414,3705.2,3704.6,7.8684506]
[1717832372157,2.69927,3704.7,3704.6,7.8684506]
[1717832372557,2.69927,3704.7,3704.6,8.4184506]
[1717832373849,2.69927,3704.7,3704.6,0.9884506]
[1717832374452,2.69927,3704.7,3704.6,0.55]
[1717832374653,2.69927,3704.7,3704.5,0.55]
[1717832375545,2.69943,3704.5,3704.2,0.4384506]
[1717832375883,2.69943,3704.5,3704.3,0.55]
[1717832376182,0.14308961,3704.4,3704.3,0.55]
[1717832377580,0.722,3704.9,3704.0,0.55]
[1717832377581,2.6996,3704.3,3704.0,0.55]
[1717832377985,2.69971,3704.1,3704.0,0.55]
[1717832380014,2.69971,3704.1,3703.7,0.4384506]
[1717832380015,2.84172763,3704.1,3703.8,0.55]
[1717832380223,2.69971,3704.1,3703.9,0.4384506]
[1717832380504,2.69971,3704.1,3704.0,0.55]
[1717832381271,2.69971,3704.1,3703.8,0.55]
[1717832383497,2.69971,3704.1,3703.9,0.4384506]
[1717832383668,2.69971,3704.1,3704.0,0.55]
[1717832388097,2.69971,3704.1,3704.0,2.9894]
[1717832388450,2.69971,3704.1,3704.0,3.7114]
[1717832392407,2.69971,3704.1,3704.0,2.9894]
[1717832401638,2.69971,3704.1,3704.0,0.55]
[1717832401983,2.84176689,3704.1,3704.0,0.55]
[1717832402385,2.84176689,3704.1,3703.5,0.4384506]
[1717832402386,2.70007,3703.6,3703.5,0.4384506]
[1717832403971,2.70007,3703.6,3703.5,3.5862506]
[1717832404593,2.70007,3703.6,3703.5,4.1362506]
[1717832405487,0.17581939,3704.3,3704.0,0.4384506]
[1717832405488,2.69978,3704.1,3704.0,0.4384506]
[1717832405676,2.69978,3704.1,3704.0,3.4142506]
[1717832405879,2.84151649,3704.1,3704.0,3.4142506]
[1717832406104,2.69978,3704.1,3704.0,3.4142506]
[1717832406395,2.84158843,3704.1,3704.0,3.4142506]
[1717832408357,2.84158843,3704.1,3704.0,0.9884506]
[1717832413773,2.84158843,3704.1,3704.0,1.7104506]
[1717832415983,0.14180843,3704.1,3704.0,1.7104506]
[1717832416313,2.69943,3704.5,3704.4,0.4384506]
[1717832416482,2.69943,3704.5,3704.4,0.9884506]
[1717832416925,6.28283567,3705.0,3704.7,0.4384506]
[1717832417214,3.28283567,3705.0,3704.8,0.55]
[1717832417384,2.69911,3705.0,3704.9,0.4384506]
[1717832417592,2.69911,3705.0,3704.9,0.9884506]
[1717832419106,2.70675,3705.5,3705.2,0.4384506]
[1717832419275,2.69875,3705.5,3705.3,0.55]
[1717832420389,3.0,3705.4,3705.3,0.55]
[1717832420975,2.69885,3705.3,3705.0,0.4384506]
[1717832421195,2.69885,3705.3,3705.1,0.55]
[1717832421427,0.13749501,3705.2,3705.1,0.55]
[1717832421740,2.69885,3705.3,3705.1,0.55]
[1717832422036,0.13749501,3705.2,3705.1,0.55]
[1717832422221,2.69885,3705.3,3705.1,0.55]
[1717832422417,0.13795347,3705.2,3705.1,0.55]
[1717832422716,2.69885,3705.3,3705.1,0.55]
[1717832423031,0.13823507,3705.2,3705.1,0.55]
[1717832423194,2.69885,3705.3,3705.1,0.55]
[1717832423377,0.58358317,3705.6,3705.5,0.4384506]
[1717832423575,2.69861,3705.6,3705.5,0.9884506]
[1717832424070,5.69861,3705.6,3705.5,0.9884506]
[1717832424271,2.69861,3705.6,3705.5,0.9884506]
[1717832424681,2.69861,3705.6,3705.5,1.7104506]
[1717832425578,2.69861,3705.6,3705.5,3.9862506]
[1717832427591,0.008,3705.9,3705.8,0.4384506]
[1717832427791,3.0,3706.0,3705.8,0.9884506]
[1717832427989,3.0,3706.0,3705.9,0.55]
[1717832432896,3.0,3706.0,3705.9,1.272]
[1717832433107,0.008,3706.2,3706.0,0.4384506]
[1717832433289,0.008,3706.5,3706.1,3.5478]
[1717832435231,0.11264039,3706.4,3706.1,3.5478]
[1717832435543,0.12064039,3706.4,3706.1,3.5478]
[1717832437442,0.12064039,3706.4,3706.3,0.4384506]
[1717832437659,0.11264039,3706.4,3706.3,0.9884506]
[1717832439409,0.11264039,3706.4,3706.3,1.7104506]
[1717832443017,0.11264039,3706.4,3706.3,0.9884506]
[1717832446059,0.11264039,3706.4,3706.3,2.43526458]
[1717832446263,0.11264039,3706.4,3706.3,4.70810526]
[1717832446466,0.11264039,3706.4,3706.3,5.43010526]
[1717832448865,0.008,3706.5,3706.4,2.3268]
[1717832449061,0.0889543,3706.9,3706.8,0.4304506]
[1717832449381,0.0889543,3706.9,3706.8,1.7024506]
[1717832450955,0.0889543,3706.9,3706.8,4.0292506]
[1717832451839,0.20323078,3706.9,3706.8,4.0292506]
[1717832452025,0.0889543,3706.9,3706.8,4.0292506]
[1717832453964,0.0889543,3706.9,3706.8,3.3072506]
[1717832454172,0.0889543,3706.9,3706.8,0.9804506]
[1717832454755,0.20323078,3706.9,3706.8,0.9804506]
[1717832479090,0.20323078,3706.9,3706.8,1.7024506]
[1717832489177,0.20323078,3706.9,3706.8,5.44820526]
[1717832500283,0.20323078,3706.9,3706.8,4.72620526]
[1717832500437,0.20323078,3706.9,3706.8,5.44820526]
[1717832503613,0.20323078,3706.9,3706.8,4.72620526]
[1717832503755,0.20323078,3706.9,3706.8,5.44820526]
[1717832512220,0.20323078,3706.9,3706.8,4.72620526]
[1717832512510,0.20323078,3706.9,3706.8,5.44820526]
[1717832519405,0.20323078,3706.9,3706.8,3.09530526]
[1717832519792,0.20323078,3706.9,3706.8,2.37330526]
[1717832520487,0.20323078,3706.9,3706.8,3.09530526]
[1717832520830,0.20323078,3706.9,3706.8,5.46910526]
[1717832521051,0.20323078,3706.9,3706.8,3.09530526]
[1717832523721,0.20323078,3706.9,3706.8,5.46910526]
[1717832524448,0.0889543,3706.9,3706.8,5.46910526]
[1717832536750,0.0889543,3706.9,3706.8,3.09530526]
[1717832537436,0.0889543,3706.9,3706.8,2.37330526]
[1717832537901,0.0889543,3706.9,3706.8,3.09530526]
[1717832538195,0.19197388,3706.9,3706.8,3.09530526]
[1717832538961,0.19197388,3706.9,3706.8,2.37330526]
[1717832539157,0.19197388,3706.9,3706.8,3.09530526]
[1717832540153,0.19197388,3706.9,3706.8,2.37330526]
[1717832540506,0.19197388,3706.9,3706.8,3.09530526]
[1717832547195,0.1885147,3706.9,3706.8,3.09530526]
[1717832550917,0.0889543,3706.9,3706.8,3.09530526]
[1717832552903,0.1886463,3706.9,3706.8,3.09530526]
[1717832553249,0.0889543,3706.9,3706.8,3.09530526]
[1717832553601,0.1886463,3706.9,3706.8,3.09530526]
[1717832568065,0.1886463,3706.9,3706.8,2.37330526]
[1717832568602,0.1886463,3706.9,3706.8,3.09530526]
[1717832571810,0.1886463,3706.9,3706.8,2.37330526]
[1717832572100,0.1886463,3706.9,3706.8,3.09530526]
[1717832574098,0.0889543,3706.9,3706.8,3.09530526]
[1717832574411,0.18537185,3706.9,3706.8,3.09530526]
[1717832577322,0.18537185,3706.9,3706.8,2.37330526]
[1717832577524,0.18537185,3706.9,3706.8,3.09530526]
[1717832580341,0.18537185,3706.9,3706.8,2.37330526]
[1717832580508,0.18537185,3706.9,3706.8,3.09530526]
[1717832580917,0.18537185,3706.9,3706.8,2.37330526]
[1717832581110,0.18537185,3706.9,3706.8,3.09530526]
[1717832583247,2.69781,3706.7,3706.6,0.008]
[1717832583413,3.03451178,3706.7,3706.5,0.4384506]
[1717832583754,3.53768581,3706.6,3706.5,0.4384506]
[1717832584043,4.12089908,3706.6,3706.5,0.4304506]
[1717832584193,4.80546092,3706.6,3706.5,0.4304506]
[1717832584396,3.13936,3706.5,3706.4,0.008]
[1717832584596,0.4414,3706.4,3706.3,0.4384506]
[1717832584792,1.33936983,3706.4,3706.3,0.4384506]
[1717832586506,1.33936983,3706.4,3706.3,0.9884506]
[1717832589213,1.33936983,3706.4,3706.3,0.558]
[1717832589444,1.33936983,3706.4,3706.3,0.4384506]
[1717832589615,1.33936983,3706.4,3706.3,0.9884506]
[1717832589837,1.33936983,3706.4,3706.3,0.008]
[1717832590014,1.33936983,3706.4,3706.1,0.008]
[1717832590015,0.4414,3706.3,3706.1,0.008]
[1717832590216,0.53663801,3706.2,3706.1,0.008]
[1717832590541,2.69829,3706.1,3706.0,0.008]
[1717832590747,5.69829,3706.1,3706.0,0.008]
[1717832590917,3.13201,3705.6,3705.5,0.4304506]
[1717832591556,3.22681956,3705.6,3705.5,0.4304506]
[1717832592466,3.22681956,3705.6,3705.5,0.9804506]
[1717832594123,2.78541956,3705.6,3705.5,0.9804506]
[1717832597146,3.22681956,3705.6,3705.5,0.9804506]
[1717832597341,3.55030152,3705.6,3705.5,0.9804506]
[1717832605491,2.78541956,3705.6,3705.5,0.9804506]
[1717832605723,2.78541956,3705.6,3705.5,1.7024506]
[1717832606249,0.09480956,3705.6,3705.5,1.7024506]
[1717832606397,0.008,3705.8,3705.7,0.4304506]
[1717832606590,0.008,3706.0,3705.9,2.7441506]
[1717832606799,0.18778726,3706.7,3706.6,0.4224506]
[1717832606996,0.18778726,3706.7,3706.6,1.6944506]
[1717832610404,0.18778726,3706.7,3706.6,3.08730526]
[1717832610714,0.18778726,3706.7,3706.6,5.35340526]
[1717832610715,0.00332074,3706.7,3706.6,5.35340526]
[1717832612337,0.09525292,3706.7,3706.6,5.35340526]
[1717832612544,0.00332074,3706.7,3706.6,5.35340526]
[1717832612751,0.09525292,3706.7,3706.6,5.35340526]
[1717832617556,0.00332074,3706.7,3706.6,5.35340526]
[1717832620165,0.00332074,3706.7,3706.6,4.63140526]
[1717832620342,0.00332074,3706.7,3706.6,5.35340526]
[1717832621912,0.00332074,3706.7,3706.6,4.63140526]
[1717832622087,0.00332074,3706.7,3706.6,5.35340526]
[1717832625048,0.00332074,3706.7,3706.6,4.63140526]
[1717832625285,0.00332074,3706.7,3706.6,5.35340526]
[1717832628247,0.00332074,3706.7,3706.6,4.63140526]
[1717832628450,0.00332074,3706.7,3706.6,5.35340526]
[1717832629161,0.00332074,3706.7,3706.6,4.63140526]
[1717832629364,0.00332074,3706.7,3706.6,5.35340526]
[1717832635412,0.04216198,3706.8,3706.6,5.35340526]
[1717832635699,0.04216198,3706.8,3706.7,1.94285466]
[1717832642582,0.04216198,3706.8,3706.7,2.66485466]
[1717832645319,0.04216198,3706.8,3706.7,1.94285466]
[1717832645499,0.04216198,3706.8,3706.7,2.66485466]
[1717832649499,0.04216198,3706.8,3706.7,1.94285466]
[1717832649699,0.04216198,3706.8,3706.7,2.66485466]
[1717832658956,0.04216198,3706.8,3706.7,3.79545774]
[1717832659472,0.04216198,3706.8,3706.7,2.66485466]
[1717832661926,0.04216198,3706.8,3706.7,3.79545774]
[1717832663748,0.005,3707.3,3707.2,5.5053006]
[1717832663982,0.005,3707.3,3707.2,12.57763733]
[1717832664299,0.005,3707.3,3707.2,10.44815526]
[1717832664581,0.005,3707.3,3707.2,11.86276303]
[1717832665080,0.005,3707.3,3707.2,12.58476303]
[1717832665282,0.4414,3708.7,3707.9,3.1193906]
[1717832665429,0.4414,3708.7,3707.9,5.78424526]
[1717832665633,2.6957,3709.7,3709.5,0.4224506]
[1717832665835,0.00477,3710.0,3709.8,0.4224506]
[1717832666041,0.00477,3710.0,3709.9,1.272]
[1717832666647,0.00477,3710.0,3709.9,0.55]
[1717832666852,0.00477,3710.0,3709.9,1.272]
[1717832667054,0.00477,3710.0,3709.9,1.222]
[1717832667655,0.00477,3710.0,3709.9,0.5]
[1717832667860,0.00477,3710.0,3709.9,1.222]
[1717832668649,0.00477,3710.0,3709.9,0.5]
[1717832668855,0.00477,3710.0,3709.9,1.222]
[1717832669360,0.00477,3710.0,3709.9,0.5]
[1717832669565,0.00477,3710.0,3709.9,1.222]
[1717832672398,0.00477,3710.0,3709.9,0.9224506]
[1717832674865,0.00477,3710.0,3709.7,0.73]
[1717832674866,0.00477,3710.0,3709.7,0.4304506]
[1717832675065,0.318914,3710.0,3709.7,0.4304506]
[1717832675972,2.69549,3709.9,3709.7,0.4304506]
[1717832676178,2.69549,3709.9,3709.7,0.4224506]
[1717832676379,0.08022427,3709.8,3709.7,0.4224506]
[1717832683398,2.69563,3709.7,3709.6,0.008]
[1717832683724,3.00510683,3709.7,3709.5,0.4304506]
[1717832683924,3.0851924,3709.7,3709.5,0.4304506]
[1717832686098,3.0851924,3709.7,3709.5,0.008]
[1717832686346,3.0851924,3709.7,3709.4,0.4304506]
[1717832686531,3.0851924,3709.7,3709.5,0.008]
[1717832686709,2.69563,3709.7,3709.6,1.1444506]
[1717832687034,2.77675994,3709.7,3709.6,1.1444506]
[1717832688708,2.77675994,3709.7,3709.6,1.6944506]
[1717832688895,2.77675994,3709.7,3709.6,0.9724506]
[1717832689096,2.77675994,3709.7,3709.6,1.6944506]
[1717832690617,0.08112994,3709.7,3709.6,1.6944506]
[1717832690847,0.00477,3710.0,3709.6,1.6944506]
[1717832691053,0.00477,3710.0,3709.9,0.4224506]
[1717832691536,2.69549,3709.9,3709.7,0.4304506]
[1717832691709,2.69549,3709.9,3709.7,0.4224506]
[1717832692322,0.08120921,3709.8,3709.7,0.4224506]
[1717832696711,0.08120921,3709.8,3709.7,0.9724506]
[1717832697810,0.00477,3710.0,3709.9,0.4224506]
[1717832698042,0.00477,3710.0,3709.9,1.6944506]
[1717832700827,0.00477,3710.0,3709.9,0.9724506]
[1717832701619,0.00477,3710.0,3709.9,1.6944506]
[1717832703844,0.00477,3710.0,3709.9,0.9724506]
[1717832704374,0.00477,3710.0,3709.9,4.72470526]
[1717832704580,0.00477,3710.0,3709.9,8.14219526]
[1717832704935,0.00477,3710.0,3709.9,7.42019526]
[1717832705133,0.00477,3710.0,3709.9,8.14219526]
[1717832706371,0.4495,3711.2,3710.3,0.4224506]
[1717832706547,0.07384526,3711.0,3710.6,0.4304506]
[1717832706742,2.69481,3710.9,3710.6,0.008]
[1717832706965,2.6949,3710.7,3710.4,0.008]
[1717832707162,2.6949,3710.7,3710.3,0.008]
[1717832707375,2.69505,3710.5,3710.3,0.008]
[1717832707737,2.69521,3710.3,3710.1,0.008]
[1717832707935,0.07393126,3710.2,3710.1,0.008]
[1717832708129,0.07393126,3710.2,3710.0,0.4224506]
[1717832708130,0.07393126,3710.2,3710.0,0.4304506]
[1717832708363,0.07393126,3710.1,3710.0,0.4304506]
[1717832708583,2.69521,3710.3,3710.0,0.4304506]
[1717832708775,0.07393126,3710.2,3710.1,0.008]
[1717832708934,2.69534,3710.1,3710.0,0.4304506]
[1717832709136,2.768947,3710.1,3710.0,0.4304506]
[1717832709771,0.073607,3710.1,3710.0,0.4304506]
[1717832709979,2.69506,3710.5,3710.0,0.9804506]
[1717832710159,2.69506,3710.5,3710.1,0.558]
[1717832710160,3.073607,3710.4,3710.1,0.558]
[1717832710485,3.073607,3710.4,3710.3,0.4224506]
[1717832710654,3.073607,3710.4,3710.3,0.9724506]
[1717832715758,0.073607,3710.4,3710.3,0.9724506]
[1717832716886,2.69477,3710.9,3710.3,0.9724506]
[1717832717098,2.69477,3710.9,3710.6,0.4224506]
[1717832718497,2.6949,3710.7,3710.5,0.008]
[1717832718701,2.6949,3710.7,3710.4,0.4224506]
[1717832719016,2.69505,3710.5,3710.3,0.008]
[1717832719214,4.03212326,3710.8,3710.2,0.008]
[1717832719215,2.69519,3710.3,3710.2,0.008]
[1717832719421,2.69519,3710.3,3710.1,0.4304506]
[1717832720510,2.69519,3710.3,3710.1,0.008]
[1717832720753,2.69519,3710.3,3710.0,0.558]
[1717832720955,2.69519,3710.3,3710.1,0.008]
[1717832721534,0.07406365,3710.2,3710.1,0.008]
[1717832721862,0.4494,3710.8,3710.0,0.008]
[1717832721863,2.69534,3710.1,3710.0,0.008]
[1717832722211,2.76913895,3710.1,3710.0,0.008]
[1717832724161,2.76913895,3710.1,3710.0,0.558]
[1717832732215,2.76913895,3710.1,3710.0,0.008]
[1717832732412,2.76913895,3710.1,3709.9,0.008]
[1717832733136,0.06739575,3710.0,3709.9,0.008]
[1717832733700,3.8067068,3710.0,3709.9,0.008]
[1717832733897,2.69552,3709.9,3709.8,0.008]
[1717832734030,5.69552,3709.9,3709.8,0.008]
[1717832734338,7.36053722,3709.9,3709.8,0.008]
[1717832736056,2.68792,3709.3,3709.2,7.43]
[1717832736236,2.68792,3709.3,3709.2,0.55]
[1717832736583,2.76126885,3709.3,3709.2,0.55]
[1717832737243,2.76126885,3709.3,3709.1,0.4224506]
[1717832737435,2.69607,3709.1,3708.9,0.4224506]
[1717832737831,2.69636,3708.7,3708.6,7.8524506]
[1717832738070,2.69667,3708.3,3708.0,0.4224506]
[1717832738569,0.07262723,3708.2,3708.0,0.4224506]
[1717832738943,2.69667,3708.3,3708.0,0.4224506]
[1717832739131,0.07230277,3708.1,3708.0,0.4224506]
[1717832739334,2.69667,3708.3,3708.0,0.4224506]
[1717832739835,2.69667,3708.3,3708.2,0.4224506]
[1717832743077,2.69667,3708.3,3708.2,0.9724506]
[1717832746086,0.008,3708.8,3708.2,0.9724506]
[1717832746240,2.69633,3708.8,3708.6,0.4224506]
[1717832746548,0.16671487,3709.0,3708.9,0.4224506]
[1717832746549,0.15871487,3709.0,3708.9,0.4224506]
[1717832746947,0.15871487,3709.0,3708.9,0.9724506]
[1717832751584,0.231064,3709.0,3708.9,0.9724506]
[1717832755770,0.15871487,3709.0,3708.9,0.9724506]
[1717832756413,0.15871487,3709.0,3708.9,2.36530526]
[1717832756595,0.15871487,3709.0,3708.9,4.78690526]
[1717832756771,0.22835488,3709.0,3708.9,4.78690526]
[1717832756970,0.15871487,3709.0,3708.9,4.78690526]
[1717832762283,0.008,3709.3,3709.0,2.69612]
[1717832762625,0.008,3709.7,3709.1,1.94285466]
[1717832762833,0.06917745,3709.6,3709.1,1.94285466]
[1717832762987,0.008,3709.5,3709.1,1.94285466]
[1717832763530,0.06917745,3709.4,3709.1,1.94285466]
[1717832763881,0.008,3709.5,3709.1,1.94285466]
[1717832764082,0.008,3709.7,3709.1,1.94285466]
[1717832764602,0.06917745,3709.6,3709.1,1.94285466]
[1717832764914,0.008,3709.5,3709.1,1.94285466]
[1717832765098,0.008,3709.5,3709.2,2.4031]
[1717832765301,0.06969443,3709.4,3709.3,1.94285466]
[1717832765729,0.008,3709.5,3709.3,1.94285466]
[1717832766026,0.06968118,3709.4,3709.3,1.94285466]
[1717832766331,0.008,3709.5,3709.3,1.94285466]
[1717832766485,0.008,3709.8,3709.3,1.94285466]
[1717832767142,0.06973419,3709.7,3709.3,1.94285466]
[1717832767348,0.008,3709.6,3709.3,1.94285466]
[1717832767703,0.06973419,3709.5,3709.3,1.94285466]
[1717832768145,0.008,3709.6,3709.3,1.94285466]
[1717832768459,0.008,3709.8,3709.3,1.94285466]
[1717832768804,0.008,3709.8,3709.7,0.4224506]
[1717832769346,0.07539736,3709.8,3709.5,0.4224506]
[1717832769545,0.06739736,3709.8,3709.5,0.4224506]
[1717832769718,0.008,3709.7,3709.5,0.4224506]
[1717832769903,2.69563,3709.7,3709.5,0.4224506]
[1717832770105,2.70363,3709.7,3709.5,0.4224506]
[1717832770648,0.008,3709.7,3709.6,2.4031]
[1717832770976,0.008,3709.9,3709.6,2.9531]
[1717832771134,0.008,3709.9,3709.7,0.55]
[1717832771606,0.008,3709.9,3709.6,0.55]
[1717832772705,0.008,3709.9,3709.8,0.4224506]
[1717832772939,2.69556,3709.8,3709.5,0.4224506]
[1717832773212,0.008,3709.7,3709.5,0.4224506]
[1717832775563,0.008,3709.7,3708.8,0.4224506]
[1717832775564,0.4494,3709.4,3708.8,0.4224506]
[1717832775723,1.05308577,3709.4,3708.8,0.4224506]
[1717832776065,0.6632655,3709.3,3708.8,0.4224506]
[1717832776267,0.6712655,3709.3,3708.8,0.4224506]
[1717832777220,2.69621,3708.9,3708.8,0.4224506]
[1717832777663,2.76322583,3708.9,3708.8,0.4224506]
[1717832778536,0.06701583,3708.9,3708.8,0.4224506]
[1717832778864,0.008,3709.2,3708.8,0.9724506]
[1717832779046,2.70392,3709.4,3708.9,0.55]
[1717832779222,2.70392,3709.4,3709.2,0.4224506]
[1717832779421,2.966312,3709.4,3709.0,0.4224506]
[1717832779680,2.974312,3709.4,3709.2,0.4224506]
[1717832779880,2.966312,3709.4,3709.0,0.4224506]
[1717832780050,2.966312,3709.4,3709.1,0.55]
[1717832780243,2.966312,3709.4,3709.0,0.4224506]
[1717832780464,2.974312,3709.4,3709.0,0.4224506]
[1717832781533,0.06710873,3709.3,3709.0,0.4224506]
[1717832784339,2.69599,3709.2,3709.0,0.4224506]
[1717832784891,0.06713526,3709.1,3709.0,0.4224506]
[1717832794691,2.76320526,3709.1,3708.9,0.55]
[1717832795508,2.69621,3708.9,3708.8,0.4224506]
[1717832796147,2.76323246,3708.9,3708.8,0.4224506]
[1717832804802,2.76323246,3708.9,3708.6,0.4224506]
[1717832804983,2.76323246,3708.9,3708.7,0.55]
[1717832805912,2.76323246,3708.9,3708.5,0.4224506]
[1717832806218,2.76323246,3708.9,3708.5,1.1364506]
[1717832806768,3.72641658,3708.9,3708.5,0.4224506]
[1717832807067,3.14357942,3708.9,3708.5,0.4224506]
[1717832807275,3.72659805,3708.9,3708.5,0.4224506]
[1717832807484,3.14357942,3708.9,3708.5,0.4224506]
[1717832807708,3.72659805,3708.9,3708.5,0.4224506]
[1717832808006,3.14357942,3708.9,3708.5,0.4224506]
[1717832808317,3.72659805,3708.9,3708.5,0.4224506]
[1717832808610,2.76323246,3708.9,3708.5,0.4224506]
[1717832808819,3.34625109,3708.9,3708.5,0.4224506]
[1717832808975,2.76323246,3708.9,3708.5,0.4224506]